Cogmind - Beta 12 @@@ ROGUE MODE // 2023.11.29 @ 16:08:32 Player: arkn Result: Destroyed by D-53 Grenadier with Mini Grenade Launcher Performance ------------- Evolutions (0) 0 Regions Visited (4) 800 Robots Destroyed (20) 100 Value Destroyed (364) 364 Prototype IDs (23) 460 Alien Tech Used (0) 0 Bonus (270) 270 TOTAL SCORE: 1994 Bonus ------- Aligned with FarCom 300 Friendly Fire -30 Cogmind --------- Core Integrity 0/250 Matter 293/300 Energy 100/100 System Corruption 2% Temperature Cool (0) Movement Core (350) Ox6 Location -9/Mines Parts ------- > --- POWER (1) -------- (None) > --- PROPULSION (2) --- (None) > --- UTILITY (2) ------ Large Storage Unit Signal Interpreter > --- WEAPON (2) ------- (None) > --- INVENTORY (15) --- Aluminum Leg Aluminum Leg Superbattery (1500) Structural Scanner Seismic Detector Light Armor Plating Sensor Drone Bay Heavy EM Pulse Gun Grenade Launcher Peak State ------------ > --- POWER ------------ Ion Engine > --- PROPULSION ------- Aluminum Leg Aluminum Leg > --- UTILITY ---------- Large Storage Unit Signal Interpreter > --- WEAPON ----------- Heavy EM Pulse Gun Rocket Launcher > --- INVENTORY -------- Light Treads Light Treads Aluminum Leg Aluminum Leg Superbattery Seismic Detector Light Armor Plating Sensor Drone Bay Heavy EM Pulse Gun Grenade Launcher [Rating: 11] Favorites ----------- Power Ion Engine Engine Ion Engine Propulsion Aluminum Leg Treads Light Treads Leg Aluminum Leg Utility Signal Interpreter Storage Small Storage Unit Processor Signal Interpreter Protection Light Armor Plating Weapon Heavy EM Pulse Gun Energy Gun Heavy EM Pulse Gun Ballistic Gun Light Assault Rifle Launcher Rocket Launcher Build | -11 -10 -10 -10 -9 ------- Run | Jun Mat Min Exi Min Slots Evolved . | . . . . . Power . | . . . . . Propulsion . | . . . . . Utility . | . . . . . Weapon . | . . . . . Parts Attached 13 | . 7 1 1 4 Power 1 | . 1 . . . Engine 1 | . 1 . . . Core . | . . . . . Reactor . | . . . . . Propulsion 2 | . . . . 2 Treads 2 | . . . . 2 Leg . | . . . . . Wheel . | . . . . . Hover . | . . . . . Flight . | . . . . . Utility 4 | . 2 1 1 . Device . | . . . . . Storage 1 | . . . 1 . Processor 1 | . . 1 . . Hackware . | . . . . . Protection 2 | . 2 . . . Artifact . | . . . . . Weapon 6 | . 4 . . 2 Energy Gun 4 | . 4 . . . Energy Cannon . | . . . . . Ballistic Gun . | . . . . . Ballistic Cannon . | . . . . . Launcher 2 | . . . . 2 Special Weapon . | . . . . . Impact Weapon . | . . . . . Slashing Weapon . | . . . . . Piercing Weapon . | . . . . . Special Melee Weapon . | . . . . . Unidentified Prototypes . | . . . . . Parts Lost 10 | . 3 . . 7 Power 2 | . 1 . . 1 Propulsion 4 | . . . . 4 Utility . | . . . . . Weapon 4 | . 2 . . 2 Highest Loss Streak 7 | . 1 . . 7 To Critical Strikes . | . . . . . Average Slot Usage (%) 98 | . 96 100 100 97 Engine 13 | . 13 14 14 14 Leg 27 | . 28 28 28 26 Storage 14 | . 14 14 14 14 Processor 9 | . . 9 14 14 Protection 4 | . 11 4 . . Energy Gun 22 | . 25 28 28 15 Launcher 3 | . . . . 10 Naked Turns . | . . . . . Heaviest Build 32 | 11 19 19 31 32 Greatest Support 40 | 20 20 20 20 40 Greatest Overweight (x) 8 | . . . 1 8 Average Overweight (x) . | . . . . 1 Largest Inventory Capacity 15 | . 8 8 15 15 Average Capacity 10 | . 8 8 8 15 Most Carried 11 | . 8 8 8 11 Average Carried 8 | . 7 8 7 9 Final Capacity 15 | 8 8 8 15 15 Final Carried 9 | 6 8 8 8 9 Class Distribution -------------------- 100% | Mutant Dominant Class ---------------- Mutant | -10/Materials Mutant | -10/Mines Mutant | -10/Exiles Mutant | -9/Mines Resources | -11 -10 -10 -10 -9 ----------- Run | Jun Mat Min Exi Min Matter Collected 326 | 200 66 10 . 50 Remotely . | . . . . . Salvage Created 571 | . 441 84 . 46 Parts 34 | . 21 8 . 5 Haulers Intercepted 2 | . 2 . . . Recyclers Shooed 2 | . . 2 . . Parts Field Recycled . | . . . . . Retrieved Matter . | . . . . . Parts Self-Destructed . | . . . . . Prevented . | . . . . . Kills | -11 -10 -10 -10 -9 ------- Run | Jun Mat Min Exi Min Combat Hostiles Destroyed 22 | . 9 5 . 8 Guns 13 | . 7 5 . 1 AOE 8 | . 1 . . 7 Classes Destroyed 4 | . 3 . . 1 Hauler 2 | . 2 . . . Swarmer 12 | . 3 5 . 4 Grunt 6 | . 6 . . . Assembled 4 | . . . . 4 Best Kill Streak 4 | . 3 3 . 4 Combat Bots Only 4 | . 3 3 . 4 Max Kills in Single Turn 4 | . 1 1 . 4 Gunslinging . | . . . . . Exploded 4 | . 1 . . 4 Melee . | . . . . . Uniques/NPCs Destroyed . | . . . . . Combat | -11 -10 -10 -10 -9 -------- Run | Jun Mat Min Exi Min Damage Taken 1189 | . 428 98 . 663 Core 255 | . 72 13 . 170 Absorbed by Shields . | . . . . . Core Remaining (%) 100 | 100 . . . . Volleys Fired 40 | . 24 9 . 7 Largest 2 | . 2 2 . 1 Hottest 90 | . 90 90 . 45 Shots Fired 70 | . 45 18 . 7 Gun 66 | . 45 18 . 3 Cannon . | . . . . . Launcher 4 | . . . . 4 Special . | . . . . . Kinetic 1 | . 1 . . . Thermal 1 | . 1 . . . Explosive 4 | . . . . 4 Electromagnetic 64 | . 43 18 . 3 Robot Hit Streak 7 | . 7 3 . 1 Robot Miss Streak 4 | . 3 4 . 3 Penetration Max . | . . . . . Secondary Targets 1 | . 1 . . . Max Gunslinging Chain 1 | . 1 . . . Shots Hit Robots 34 | . 26 7 . 1 Core Hits 32 | . 13 6 . 13 Critical Kills . | . . . . . Critical Parts Destroyed . | . . . . . Critical Strikes 1 | . 1 . . . Corrupt 1 | . 1 . . . Melee Attacks . | . . . . . Impact . | . . . . . Slashing . | . . . . . Piercing . | . . . . . Sneak Attacks . | . . . . . Combat Hostiles . | . . . . . Follow-up Attacks . | . . . . . Damage Inflicted 1118 | . 488 121 . 509 Guns 496 | . 379 104 . 13 Cannons . | . . . . . Explosions 575 | . 98 . . 477 Melee . | . . . . . Ramming 47 | . 11 17 . 19 Kinetic . | . . . . . Thermal 98 | . 98 . . . Explosive 477 | . . . . 477 Electromagnetic 496 | . 379 104 . 13 Impact . | . . . . . Slashing . | . . . . . Piercing . | . . . . . Highest Corruption 2 | . . . . 2 Average Corruption 2 | . . . . 2 Corruption Purged . | . . . . . Corruption Blocked . | . . . . . Overload Shots . | . . . . . Overflow Damage 77 | . 49 . . 28 Projectiles . | . . . . . Explosions 77 | . 49 . . 28 Melee . | . . . . . Knockbacks . | . . . . . Impact . | . . . . . Kinetic . | . . . . . Secondary . | . . . . . Self-Inflicted Damage 129 | . 90 . . 39 Shots 3 | . 2 . . 1 Rammed . | . . . . . Targets Rammed 9 | . 2 4 . 3 Kicked 9 | . 2 4 . 3 Crushed . | . . . . . Highest Temperature 330 | . 330 156 . 12 Average Temperature 85 | . 94 71 . 7 Received Heat Transfer 132 | . 132 . . . Siege Activations . | . . . . . Robots Corrupted 1 | . 1 . . . Combat Hostiles 1 | . 1 . . . Parts Fried 3 | . 3 . . . Impact Corruptions . | . . . . . Robots Melted . | . . . . . Combat Hostiles . | . . . . . Parts Melted . | . . . . . Heat Transferred 100 | . 100 . . . Parts Sabotaged . | . . . . . Parts Stolen . | . . . . . Parts Stripped . | . . . . . Power Chain Reactions 2 | . 2 . . . Missiles Intercepted . | . . . . . Alert | -11 -10 -10 -10 -9 ------- Run | Jun Mat Min Exi Min Peak Influence 267 | . 267 184 . 135 Initial 49 | . . 49 . . Average 71 | . 95 138 . 35 Maximum Alert Level 1 | . 1 . . . Low Security (%) 96 | . 92 100 . 100 Level 1 3 | . 7 . . . Level 2 . | . . . . . Level 3 . | . . . . . Level 4 . | . . . . . Level 5 . | . . . . . High Security . | . . . . . Max Security . | . . . . . Squads Dispatched 2 | . 2 . . . Investigation 2 | . 2 . . . Extermination . | . . . . . Reinforcement . | . . . . . Assault . | . . . . . Garrison . | . . . . . Intercept . | . . . . . Searches Triggered . | . . . . . Construction Impeded . | . . . . . Haulers Reinforced . | . . . . . Active Scanning Responses . | . . . . . Cargo Convoy Interrupts . | . . . . . Stealth | -11 -10 -10 -10 -9 --------- Run | Jun Mat Min Exi Min Distress Signals 3 | . 3 . . . Communications Jammed . | . . . . . Distress Signals . | . . . . . Times Spotted 43 | . 17 5 . 21 Peak Tracking Total 11 | . 5 3 . 11 Tactical Retreats 4 | . 2 1 . 1 Traps | -11 -10 -10 -10 -9 ------- Run | Jun Mat Min Exi Min Traps Triggered 1 | . 1 . . . Indirectly . | . . . . . Trap Hack Attempts . | . . . . . Triggered . | . . . . . Disarmed . | . . . . . Reprogrammed . | . . . . . Reused . | . . . . . Traps Extracted . | . . . . . Installed . | . . . . . Triggered . | . . . . . Machines | -11 -10 -10 -10 -9 ---------- Run | Jun Mat Min Exi Min Machines Disabled 1 | . 1 . . . Max in Single Turn 1 | . 1 . . . Machines Repaired . | . . . . . Machines Sabotaged . | . . . . . Overloaded Fab Kills . | . . . . . Hacking | -11 -10 -10 -10 -9 --------- Run | Jun Mat Min Exi Min Machines Accessed 9 | . 7 . 1 1 Terminals 7 | . 7 . . . Fabricators . | . . . . . Repair Stations . | . . . . . Recycling Units . | . . . . . Scanalyzers . | . . . . . Garrison Access . | . . . . . Total Hacks 32 | . 30 . 1 1 Successful 23 | . 21 . 1 1 Failed 9 | . 9 . . . Catastrophic 2 | . 2 . . . Database Lockouts . | . . . . . Manual 31 | . 30 . 1 . Terminals 30 | . 30 . . . Fabricators . | . . . . . Repair Stations . | . . . . . Recycling Units . | . . . . . Scanalyzers . | . . . . . Garrison Access . | . . . . . Terminal Hacks 8 | . 6 . 1 1 Open Door 1 | . . . . 1 Terminal Index 1 | . 1 . . . Registered Components 1 | . 1 . . . Zone Layout 4 | . 4 . . . EX-Prototype ID Bank 1 | . . . 1 . Fabricator Hacks . | . . . . . Repair Station Hacks . | . . . . . Recycling Unit Hacks . | . . . . . Scanalyzer . | . . . . . Garrison Access Hacks . | . . . . . Unauthorized Hacks 15 | . 15 . . . Terminals 15 | . 15 . . . Track 5 | . 5 . . . Assimilate 2 | . 2 . . . Botnet 7 | . 7 . . . Detonate 1 | . 1 . . . Fabricators . | . . . . . Repair Stations . | . . . . . Recycling Units . | . . . . . Scanalyzers . | . . . . . Garrison Access . | . . . . . Data Cores Recovered . | . . . . . Used . | . . . . . Hacking Detections 6 | . 6 . . . Full Trace Events 3 | . 3 . . . Feedback Events . | . . . . . Feedback Blocked . | . . . . . Robot Schematics Acquired . | . . . . . Robots Built . | . . . . . Authchips . | . . . . . Time . | . . . . . Total Robot Build Rating . | . . . . . Part Schematics Acquired . | . . . . . Parts Built . | . . . . . Authchips . | . . . . . Time . | . . . . . Total Part Build Rating . | . . . . . Parts Repaired . | . . . . . Time . | . . . . . Parts Recycled . | . . . . . Recycled Matter . | . . . . . Retrieved Matter . | . . . . . Retrieved Components . | . . . . . Parts Scanalyzed . | . . . . . Part Schematics Acquired . | . . . . . Parts Damaged . | . . . . . Bothacking | -11 -10 -10 -10 -9 ------------ Run | Jun Mat Min Exi Min Used RIF Installer . | . . . . . Robots Hacked . | . . . . . Non-combat . | . . . . . Combat . | . . . . . Robot Hacks Applied . | . . . . . Relay Couplers Released . | . . . . . Fabnet Peak Effective % . | . . . . . Robots Rewired . | . . . . . Allies Hacked . | . . . . . Hacks Repelled . | . . . . . Allies | -11 -10 -10 -10 -9 -------- Run | Jun Mat Min Exi Min Total Allies 1 | . 1 . . . Largest Group 1 | . 1 . . . Highest-Rated Group 10 | . 10 . . . Highest-Rated Ally 10 | . 10 . . . Total Orders . | . . . . . Ally Attacks . | . . . . . Total Damage . | . . . . . Kills . | . . . . . Allies Corrupted . | . . . . . Allies Melted . | . . . . . Intel | -11 -10 -10 -10 -9 ------- Run | Jun Mat Min Exi Min Robot Analysis Total . | . . . . . Derelict Logs Recovered 1 | . . . . 1 Drone Launches . | . . . . . Drone Recoveries . | . . . . . Exploration | -11 -10 -10 -10 -9 ------------- Run | Jun Mat Min Exi Min Turns Passed 2158 | . 690 156 553 759 Spaces Moved 1397 | 1 486 102 434 374 Core 6 | . . . . 6 Treads 14 | . . . . 14 Legs 1377 | 1 486 102 434 354 Wheels . | . . . . . Hover . | . . . . . Flight . | . . . . . Fastest Speed 120 | 120 120 120 120 160 Average Speed 141 | 120 120 120 125 193 Slowest Speed 450 | 120 120 120 190 450 Overloaded Moves . | . . . . . Propulsion Burnouts . | . . . . . Robots Hopped . | . . . . . Cave-ins Triggered . | . . . . . Exploration Rate (%) 54 | 2 88 20 90 74 Regions Visited 4 Branch Regions 3 Pre-discovered Areas . | . . . . . Known Exits Taken 2 | . . 1 1 . Unknown Exits Taken 2 | 1 1 . . . Scrap Searched 3 | . . 1 . 2 Spaces Dug . | . . . . . Terrain Destroyed 38 | . 7 . . 31 Melee . | . . . . . Projectile . | . . . . . AOE 38 | . 7 . . 31 Terrain Rammed . | . . . . . Walls Destroyed . | . . . . . Machines Disabled . | . . . . . Actions | -11 -10 -10 -10 -9 --------- Run | Jun Mat Min Exi Min Total 1505 | . 548 117 442 398 Wait 25 | . 17 . . 8 Move 1393 | . 485 101 433 374 Hop . | . . . . . Pick Up 12 | . 8 1 1 2 Fast Attach 2 | . 2 . . . Attach 6 | . 4 . . 2 Detach . | . . . . . Swap 5 | . 1 1 1 2 Drop 8 | . 5 1 2 . Fire 40 | . 24 9 . 7 Melee . | . . . . . Ram . | . . . . . Kick 9 | . 2 4 . 3 Crush . | . . . . . Escape Stasis . | . . . . . Rewire 5 | . . . 5 . Trap . | . . . . . Miscellaneous . | . . . . . Route ------- -11/Junkyard -10/Materials (discovered 4 exits: *Mat x2 / [*Min x2]) -10/Mines (discovered 2 exits: *Mat / *Exi) -10/Exiles (discovered 2 exits: *Min x2) -9/Mines (discovered 2 exits: *Mat x2) History --------- Turn | Location | Event 1 | -11/Junkyard | Discovered new exit (range 0) 1 | -11/Junkyard | Entered Materials 1 | -10/Materials | Discovered new exit (range 7) 154 | -10/Materials | Discovered new exit (range 15) 262 | -10/Materials | Discovered new exit (range 8) 311 | -10/Materials | Build established: Mutant 567 | -10/Materials | Discovered new exit (range 17) 691 | -10/Materials | Entered Mines 730 | -10/Mines | Discovered new exit (range 9) 751 | -10/Mines | Identified exit to Materials 841 | -10/Mines | Deemed a non-threat by the Exiles lab entrance 843 | -10/Mines | Discovered new exit (range 5) 846 | -10/Mines | Identified exit to Exiles 847 | -10/Mines | Entered Exiles 867 | -10/Exiles | Discovered new exit (range 14) 881 | -10/Exiles | Identified exit to Mines 906 | -10/Exiles | Met 8R-AWN 923 | -10/Exiles | Met EX-HEX 969 | -10/Exiles | Met EX-BIN 986 | -10/Exiles | Aligned with FarCom system 987 | -10/Exiles | Given EX-Vault access code 1014 | -10/Exiles | Opened EX-Vault 1026 | -10/Exiles | Found Superbattery 1051 | -10/Exiles | Warned to stay clear of 0b10 Research branches 1090 | -10/Exiles | Met EX-DEC 1169 | -10/Exiles | Visited The Gauntlet 1369 | -10/Exiles | Discovered exit to Mines (range 10) 1400 | -10/Exiles | Left Exiles lab with Superbattery 1400 | -10/Exiles | Entered Mines 1451 | -9/Mines | Met a Derelict bent on vengeance 1454 | -9/Mines | Discovered new exit (range 11) 1473 | -9/Mines | Identified exit to Materials 1628 | -9/Mines | Learned 4 Materials zone layouts 1673 | -9/Mines | Found the Drone Emporium 1680 | -9/Mines | Found Prototype Device 2011 | -9/Mines | Discovered exit to Materials (range 4) 2082 | -9/Mines | Assembled infested the area 2087 | -9/Mines | Assisted by a Guerilla fighting off Assembled 2112 | -9/Mines | Core integrity fell below 50% 2136 | -9/Mines | Core integrity fell below 20% 2159 | -9/Mines | Destroyed by D-53 Grenadier with Mini Grenade Launcher Last Messages --------------- 02112_ as-51735 destroyed. 02114_ as-60121 destroyed. 02114_ as-08127 destroyed. 02114_ as-97078 destroyed. 02116_ as-66760 destroyed. 02120_ as-92891 destroyed. 02125_ Rocket Launcher destroyed. 02125_ Lgt. Treads destroyed. 02129_ K-01 Serf destroyed. 02131_ as-90069 destroyed. 02132_ Lgt. Treads destroyed. 02132_ T-07 Excavator destroyed. 02137_ The unstable cave ceiling collapses. 02142_ U-05 Engineer lays Concrete. 02143_ The unstable cave ceiling collapses. 02144_ U-05 Engineer lays Concrete. 02145_ The unstable cave ceiling collapses. 02145_ U-05 Engineer lays Concrete. 02151_ U-05 Engineer builds a Wall. 02159_ Ion Engine destroyed. Map ----- +----------------------------------------------------+ | ??????????????# #???????????????????## | | ??????????????# #?????????????????????# | | ??????????????# ##?????????????????????# | | ??????????????# #??????????????????????## | | ??????????????# #######?????????????????### | | ??????????????# #??????????????????## | | ??????????????# #####%#?????????????????## | | ??????????????# ##???# ##########????????# | | ???????????? ##?????# % #????????# | | ???????????# ???????########## #????????# | | ???????????# !! ????????????????# #????????## ## | | ???????????# !?????????????????# #?????????## #? | | ???????????# !!????????????????##=############ ## | | ???????????# !?????????????????#[% % | | ???????????# ?????????????????#*############# ### | | ?? ????????##??????????????????# #???????????# ### | | ?? ##??????????????????????????# #???????????# | | ?# #??????##########????????### #???????????# ## | | ? #???????## ##??????????# #? | | ? ??????######## #??????## ##?????????# #? | | # #?????????????# #???#### #?????????# #? | | #????########## ##### #?????????# #? | | ? ?# ##?????????# #? | | #? ## #####??????????# #? | | #? ## ############# ##??????????????# #? | | ## ## #??????????## @ #???????????????# #? | | # ## #?????????## #####???????????# #? | | # #? #??????#### ###???######## ## | | # ## #?????##""## u% ##?## # | | < #? #?????#" #X ## d ### | | #? #?????#" ## ###### | | #### #??????#" # # #### | | ##### #??????#" g# # ##" [ | | #??# #???????##""## # # % % | | #??# #????????####### r = | | #??# ##?????????????# | | #??## #?????????????# d | | #???# #?????????????## #### # [ | | #???## ##??????????????# ##???### % | | #????## #???????????????# #??????## | | #####?# #???????######### #???????# | | ### #???????# #??????? | | #????#### #########??????# | | ### #####????# ####???????????## % | | ??# #????????# ### ###??????????## | | ?## ##???????# ### #???????????# ##" | | ?# #???????# ####????????# #?## | | ## ######??#### #????????? #??## # # | | # ## ##????# %! # #????????? ##???#### ? | | # #????## #??????????????????? ? | +----------------------------------------------------+ Best States ------------- Heat Dissipation 25 Energy Generation 10 Energy Capacity 250 Matter Stores 300 Matter Capacity 300 Sight Range 16 Terrain Scan Density 10 Armor Coverage 150 Evasion (%) 55 Recoil Reduction 2 Item Schematics ----------------- None Robot Schematics ------------------ None Fabricated ------------ Nothing Alien Tech Used ----------------- None Achievements -------------- None Challenges ------------ None Game ------ Seed ArcHybridLog Manual? 0 Play Time 00:24:18 Cumulative 55.7 hours Start 2023.11.29 @ 15:27:09 End 2023.11.29 @ 16:08:32 Sessions 1 Manual Loads 0 Difficulty Rogue Special Mode None Game No. 61 Rogue 61 Adventurer 0 Explorer 0 Win Type - Total 0 Types 0/0/0/0/0/0/0/0/0 Lore% 31 Gallery% 34 Achievement% 31 Wizard Run 0 Options --------- ASCII 0 Keyboard 0 Movement Numpad Keybinds 0 Fullscreen 1 Font 18/X11Bold Map View 76x50 Tactical HUD 1 Map Filters NONE Filters NONE Steam 1 RUN: 47846ecf-6679-4693-9483-76bfcaae1289